fUSD/lending_fUSD_20240814
["ID","MTS","AMOUNT","RATE_DAILY","PERIOD"]
[334833763,1723606249355,-3831.66,0.00013698,2]
[334833764,1723606249364,-3366.69,0.00013698,2]
[334833765,1723606249373,-8902.34,0.00013698,2]
[334833766,1723606249383,-500.0,0.00013698,2]
[334833767,1723606249392,-683.18,0.00013698,2]
[334833768,1723606249401,-500.0,0.00013698,2]
[334833769,1723606249410,-475.35749367,0.00013698,2]
[334833770,1723606249419,-1047.89,0.00013698,2]
[334833771,1723606249428,-200.0,0.00013699,2]
[334833772,1723606249437,-2592.17,0.00013699,2]
[334833773,1723606249446,-500.0,0.00013798,2]
[334833774,1723606249455,-500.0,0.00013799,2]
[334833775,1723606249465,-500.0,0.00013799,2]
[334833776,1723606249475,-500.0,0.00013799,2]
[334833777,1723606249484,-339322.096116,0.000138,2]
[334833778,1723606249493,-546.87070022,0.00013896,2]
[334833779,1723606249502,-413644.722549,0.000139,2]
[334833780,1723606249511,-500.0,0.00013961,2]
[334833781,1723606249520,-710.12,0.00013961,2]
[334833782,1723606249530,-500.0,0.00013961,2]
[334833783,1723606249540,-500.0,0.00013971,2]
[334833784,1723606249550,-523.61126918,0.00013971,2]
[334833785,1723606249559,-500.0,0.00013971,2]
[334833786,1723606249568,-500.0,0.00013971,2]
[334833787,1723606249577,-500.0,0.00013971,2]
[334833788,1723606249588,-710.12,0.00013971,2]
[334833789,1723606249597,-710.12,0.00013971,2]
[334833790,1723606249606,-710.12,0.00013971,2]
[334833791,1723606249615,-710.12,0.00013971,2]
[334833792,1723606249624,-435.10212766,0.00013971,2]
[334833793,1723606249633,-56624.83283224,0.00013972,2]
[334833794,1723606249643,-422.82,0.00013972,2]
[334833795,1723606249652,-522.78,0.00013972,2]
[334833796,1723606249661,-500.0,0.00013972,2]
[334833797,1723606249670,-500.0,0.00013972,2]
[334833798,1723606249679,-1000.0,0.00013972,2]
[334833799,1723606249689,-500.0,0.00013972,2]
[334833800,1723606249698,-1095.06,0.00013972,2]
[334833801,1723606249707,-1320.5,0.00013972,2]
[334833802,1723606249717,-500.0,0.00013972,2]
[334833803,1723606249726,-1071.49,0.00013972,2]
[334833804,1723606249738,-500.0,0.00013972,2]
[334833805,1723606249748,-500.0,0.00013972,2]
[334833806,1723606249757,-500.0,0.00013972,2]
[334833807,1723606249767,-744.97,0.00013972,2]
[334833808,1723606249776,-500.0,0.00013972,2]
[334833809,1723606249786,-1591.04,0.00013972,2]
[334833810,1723606249795,-563.96,0.00013972,2]
[334833811,1723606249805,-500.0,0.00013972,2]
[334833812,1723606249816,-500.0,0.00013972,2]
[334833813,1723606249826,-500.0,0.00013972,2]
[334833814,1723606249838,-500.0,0.00013972,2]
[334833815,1723606249846,-500.0,0.00013972,2]
[334833816,1723606249854,-544.13,0.00013972,2]
[334833817,1723606249862,-500.0,0.00013972,2]
[334833818,1723606249871,-500.0,0.00013972,2]
[334833819,1723606249881,-500.0,0.00013972,2]
[334833820,1723606249890,-500.0,0.00013972,2]
[334833821,1723606249900,-500.0,0.00013972,2]
[334833822,1723606249909,-500.0,0.00013972,2]
[334833823,1723606249919,-500.0,0.00013972,2]
[334833824,1723606249928,-500.0,0.00013972,2]
[334833825,1723606249937,-500.0,0.00013972,2]
[334833826,1723606249946,-500.0,0.00013972,2]
[334833827,1723606249955,-628.21,0.00013972,2]
[334833828,1723606249964,-500.0,0.00013972,2]
[334833829,1723606249974,-593.45091355,0.00013972,2]
[334833830,1723606249983,-500.0,0.00013972,2]
[334833831,1723606249993,-1008.16,0.00013972,2]
[334833832,1723606250003,-352.85981144,0.00013972,2]
[334833833,1723606250014,-500.0,0.00013972,2]
[334833834,1723606250023,-500.0,0.00013972,2]
[334833835,1723606250032,-796.04,0.00013972,2]
[334833836,1723606250042,-500.0,0.00013972,2]
[334833837,1723606250051,-500.0,0.00013972,2]
[334833838,1723606250060,-500.0,0.00013972,2]
[334833839,1723606250070,-500.0,0.00013972,2]
[334833840,1723606250079,-500.0,0.00013972,2]
[334833841,1723606250088,-1082.31,0.00013972,2]
[334833842,1723606250097,-500.0,0.00013972,2]
[334833843,1723606250107,-500.0,0.00013972,2]
[334833844,1723606250116,-500.0,0.00013972,2]
[334833845,1723606250125,-500.0,0.00013972,2]
[334833846,1723606250135,-500.0,0.00013972,2]
[334833847,1723606250144,-1596.04,0.00013972,2]
[334833848,1723606250154,-724.72,0.00013972,2]
[334833849,1723606250163,-500.0,0.00013972,2]
[334833850,1723606250173,-647.99,0.00013972,2]
[334833851,1723606250182,-500.0,0.00013972,2]
[334833852,1723606250192,-500.0,0.00013972,2]
[334833853,1723606250201,-977.0,0.00013972,2]
[334833854,1723606250211,-500.0,0.00013972,2]
[334833855,1723606250222,-500.0,0.00013972,2]
[334833856,1723606250231,-840.35,0.00013972,2]
[334833857,1723606250241,-500.0,0.00013972,2]
[334833858,1723606250250,-500.0,0.00013972,2]
[334833859,1723606250259,-500.0,0.00013972,2]
[334833860,1723606250269,-500.0,0.00013972,2]
[334833861,1723606250280,-809.96,0.00013972,2]
[334833862,1723606250289,-500.0,0.00013972,2]
[334833863,1723606250297,-2029.07,0.00013972,2]
[334833864,1723606250307,-500.0,0.00013972,2]
[334833865,1723606250317,-500.0,0.00013972,2]
[334833866,1723606250326,-500.0,0.00013972,2]
[334833867,1723606250337,-500.0,0.00013972,2]
[334833868,1723606250346,-555.78852598,0.00013972,2]
[334833869,1723606250355,-500.0,0.00013972,2]
[334833870,1723606250365,-500.0,0.00013972,2]
[334833871,1723606250374,-500.0,0.00013972,2]
[334833872,1723606250383,-529.41,0.00013972,2]
[334833873,1723606250393,-500.0,0.00013972,2]
[334833874,1723606250403,-500.0,0.00013972,2]
[334833875,1723606250413,-649.16,0.00013972,2]
[334833876,1723606250422,-615.91,0.00013972,2]
[334833877,1723606250432,-500.0,0.00013972,2]
[334833878,1723606250441,-766.96,0.00013972,2]
[334833879,1723606250452,-500.0,0.00013972,2]
[334833880,1723606250463,-500.0,0.00013972,2]
[334833881,1723606250475,-809.11,0.00013972,2]
[334833882,1723606250486,-577.76,0.00013972,2]
[334833883,1723606250498,-1127.52,0.00013972,2]
[334833884,1723606250507,-500.0,0.00013972,2]
[334833885,1723606250518,-500.0,0.00013972,2]
[334833886,1723606250528,-1199.36,0.00013972,2]
[334833887,1723606250539,-500.0,0.00013972,2]
[334833888,1723606250549,-500.0,0.00013972,2]
[334833889,1723606250559,-500.0,0.00013972,2]
[334833890,1723606250569,-2817.32,0.00013972,2]
[334833891,1723606250580,-500.0,0.00013972,2]
[334833892,1723606250590,-516.75,0.00013972,2]
[334833893,1723606250599,-685.63,0.00013972,2]
[334833894,1723606250608,-626.55,0.00013972,2]
[334833895,1723606250617,-500.0,0.00013972,2]
[334833896,1723606250626,-500.0,0.00013972,2]
[334833897,1723606250635,-500.0,0.00013972,2]
[334833898,1723606250644,-744.96,0.00013972,2]
[334833899,1723606250654,-965.94,0.00013972,2]
[334833900,1723606250663,-1535.24,0.00013972,2]
[334833901,1723606250672,-500.0,0.00013972,2]
[334833902,1723606250681,-500.0,0.00013972,2]
[334833903,1723606250691,-1269.45,0.00013972,2]
[334833904,1723606250701,-500.0,0.00013972,2]
[334833905,1723606250710,-500.0,0.00013972,2]
[334833906,1723606250719,-500.0,0.00013972,2]
[334833907,1723606250729,-951.12,0.00013972,2]
[334833908,1723606250741,-1022.29,0.00013972,2]
[334833909,1723606250750,-518.69,0.00013972,2]
[334833910,1723606250760,-500.0,0.00013972,2]
[334833911,1723606250769,-500.0,0.00013972,2]
[334833912,1723606250778,-500.0,0.00013972,2]
[334833913,1723606250787,-500.0,0.00013972,2]
[334833914,1723606250797,-500.0,0.00013972,2]
[334833915,1723606250809,-957.28,0.00013972,2]
[334833916,1723606250818,-500.0,0.00013972,2]
[334833917,1723606250829,-500.0,0.00013972,2]
[334833918,1723606250839,-500.0,0.00013972,2]
[334833919,1723606250849,-500.0,0.00013972,2]
[334833920,1723606250858,-500.0,0.00013972,2]
[334833921,1723606250867,-553.98,0.00013972,2]
[334833922,1723606250876,-500.0,0.00013972,2]
[334833923,1723606250886,-555.03,0.00013972,2]
[334833924,1723606250895,-500.0,0.00013972,2]
[334833925,1723606250904,-717.25,0.00013972,2]
[334833926,1723606250913,-500.0,0.00013972,2]
[334833927,1723606250922,-500.0,0.00013972,2]
[334833928,1723606250932,-1091.13,0.00013972,2]
[334833929,1723606250941,-641.38,0.00013972,2]
[334833930,1723606250950,-773.36,0.00013972,2]
[334833931,1723606250960,-500.0,0.00013972,2]
[334833932,1723606250968,-500.0,0.00013972,2]
[334833933,1723606250978,-500.0,0.00013972,2]
[334833934,1723606250987,-500.0,0.00013972,2]
[334833935,1723606250997,-500.0,0.00013972,2]
[334833936,1723606251006,-558.45,0.00013972,2]
[334833937,1723606251017,-829.14,0.00013972,2]
[334833938,1723606251026,-500.0,0.00013972,2]
[334833939,1723606251036,-500.0,0.00013972,2]
[334833940,1723606251045,-500.0,0.00013972,2]
[334833941,1723606251055,-500.0,0.00013972,2]
[334833942,1723606251064,-1184.9,0.00013972,2]
[334833943,1723606251073,-1293.99,0.00013972,2]
[334833944,1723606251083,-1677.47,0.00013972,2]
[334833945,1723606251092,-500.0,0.00013972,2]
[334833946,1723606251101,-500.0,0.00013972,2]
[334833947,1723606251111,-500.0,0.00013972,2]
[334833948,1723606251120,-501.86844909,0.00013972,2]
[334833949,1723606251129,-500.0,0.00013972,2]
[334833950,1723606251138,-500.0,0.00013972,2]
[334833951,1723606251147,-500.0,0.00013972,2]
[334833952,1723606251156,-984.09,0.00013972,2]
[334833953,1723606251166,-654.41,0.00013972,2]
[334833954,1723606251175,-1087.78,0.00013972,2]
[334833955,1723606251184,-500.0,0.00013972,2]
[334833956,1723606251194,-578.16,0.00013972,2]
[334833957,1723606251204,-500.0,0.00013972,2]
[334833958,1723606251215,-1251.36,0.00013972,2]
[334833959,1723606251224,-807.41,0.00013972,2]
[334833960,1723606251234,-500.0,0.00013972,2]
[334833961,1723606251249,-500.0,0.00013972,2]
[334833962,1723606251259,-500.0,0.00013972,2]
[334833963,1723606251268,-500.0,0.00013972,2]
[334833964,1723606251278,-500.0,0.00013972,2]
[334833965,1723606251288,-944.36,0.00013972,2]
[334833966,1723606251298,-500.0,0.00013972,2]
[334833967,1723606251309,-1708.58,0.00013972,2]
[334833968,1723606251320,-500.0,0.00013972,2]
[334833969,1723606251331,-500.0,0.00013972,2]
[334833970,1723606251340,-632.72314983,0.00013972,2]
[334833971,1723606251349,-500.0,0.00013972,2]
[334833972,1723606251359,-500.27,0.00013972,2]
[334833973,1723606251368,-500.0,0.00013972,2]
[334833974,1723606251378,-646.54,0.00013972,2]
[334833975,1723606251387,-500.0,0.00013972,2]
[334833976,1723606251397,-784.06,0.00013972,2]
[334833977,1723606251406,-500.0,0.00013972,2]
[334833978,1723606251415,-835.29,0.00013972,2]
[334833979,1723606251425,-1238.23,0.00013972,2]
[334833980,1723606251435,-500.0,0.00013972,2]
[334833981,1723606251444,-500.0,0.00013972,2]
[334833982,1723606251453,-1000.0,0.00013972,2]
[334833983,1723606251463,-1139.49,0.00013972,2]
[334833984,1723606251472,-500.0,0.00013972,2]
[334833985,1723606251483,-500.0,0.00013972,2]
[334833986,1723606251492,-500.0,0.00013972,2]
[334833987,1723606251502,-537.59,0.00013972,2]
[334833988,1723606251513,-1034.38,0.00013972,2]
[334833989,1723606251523,-500.0,0.00013972,2]
[334833990,1723606251532,-500.0,0.00013972,2]
[334833991,1723606251543,-500.0,0.00013972,2]
[334833992,1723606251552,-997.12,0.00013972,2]
[334833993,1723606251561,-528.15,0.00013972,2]
[334833994,1723606251571,-500.0,0.00013972,2]
[334833995,1723606251580,-1181.95,0.00013972,2]
[334833996,1723606251590,-1270.94,0.00013972,2]
[334833997,1723606251599,-500.0,0.00013972,2]
[334833998,1723606251609,-780.85,0.00013972,2]
[334833999,1723606251618,-500.0,0.00013972,2]
[334834000,1723606251628,-500.0,0.00013972,2]
[334834001,1723606251639,-1098.8,0.00013972,2]
[334834002,1723606251648,-1556.42,0.00013972,2]
[334834003,1723606251657,-500.0,0.00013972,2]
[334834004,1723606251667,-500.0,0.00013972,2]
[334834005,1723606251676,-500.0,0.00013972,2]
[334834006,1723606251685,-500.0,0.00013972,2]
[334834007,1723606251694,-500.0,0.00013972,2]
[334834008,1723606251703,-500.0,0.00013972,2]
[334834009,1723606251712,-1599.24,0.00013972,2]
[334834010,1723606251722,-500.0,0.00013972,2]
[334834011,1723606251731,-500.0,0.00013972,2]
[334834012,1723606251744,-500.0,0.00013972,2]
[334834013,1723606251754,-786.57,0.00013972,2]
[334834014,1723606251763,-500.0,0.00013972,2]
[334834015,1723606251772,-365.95517038,0.00013972,2]
[334834016,1723606251782,-500.0,0.00013972,2]
[334834017,1723606251791,-1240.35,0.00013972,2]
[334834018,1723606251800,-500.0,0.00013972,2]
[334834019,1723606251810,-2176.43,0.00013972,2]
[334834020,1723606251819,-500.0,0.00013972,2]
[334834021,1723606251828,-500.0,0.00013972,2]
[334834022,1723606251845,-501.94,0.00013972,2]
[334834023,1723606251854,-500.0,0.00013972,2]
[334834024,1723606251864,-500.0,0.00013972,2]
[334834025,1723606251873,-664.12,0.00013972,2]
[334834026,1723606251882,-2390.4,0.00013972,2]
[334834027,1723606251891,-500.0,0.00013972,2]
[334834028,1723606251900,-500.0,0.00013972,2]
[334834029,1723606251910,-500.0,0.00013972,2]
[334834030,1723606251919,-500.0,0.00013972,2]
[334834031,1723606251928,-500.0,0.00013972,2]
[334834032,1723606251938,-500.0,0.00013972,2]
[334834033,1723606251947,-854.04,0.00013972,2]
[334834034,1723606251956,-500.0,0.00013972,2]
[334834035,1723606251965,-618.23,0.00013972,2]
[334834036,1723606251975,-1141.67,0.00013972,2]
[334834037,1723606251985,-533.47324368,0.00013972,2]
[334834038,1723606251994,-1092.78,0.00013972,2]
[334834039,1723606252003,-500.0,0.00013972,2]
[334834040,1723606252013,-500.0,0.00013972,2]
[334834041,1723606252022,-1391.15,0.00013972,2]
[334834042,1723606252032,-544.89774265,0.00013972,2]
[334834043,1723606252041,-500.0,0.00013972,2]
[334834044,1723606252050,-846.62,0.00013972,2]
[334834045,1723606252060,-500.0,0.00013972,2]
[334834046,1723606252069,-500.0,0.00013972,2]
[334834047,1723606252078,-500.0,0.00013972,2]
[334834048,1723606252089,-500.0,0.00013972,2]
[334834049,1723606252098,-500.0,0.00013972,2]
[334834050,1723606252107,-500.0,0.00013972,2]
[334834051,1723606252117,-500.0,0.00013972,2]
[334834052,1723606252125,-500.0,0.00013972,2]
[334834053,1723606252135,-652.68,0.00013972,2]
[334834054,1723606252144,-1558.62,0.00013972,2]
[334834055,1723606252153,-500.90102097,0.00013972,2]
[334834056,1723606252163,-500.0,0.00013972,2]
[334834057,1723606252172,-601.86790559,0.00013972,2]
[334834058,1723606252182,-500.0,0.00013972,2]
[334834059,1723606252191,-500.0,0.00013972,2]
[334834060,1723606252201,-500.0,0.00013972,2]
[334834061,1723606252210,-500.0,0.00013972,2]
[334834062,1723606252219,-500.0,0.00013972,2]
[334834063,1723606252229,-503.75258894,0.00013972,2]
[334834064,1723606252238,-500.0,0.00013972,2]
[334834065,1723606252247,-500.0,0.00013972,2]
[334834066,1723606252257,-1837.2,0.00013972,2]
[334834067,1723606252266,-827.46,0.00013972,2]
[334834068,1723606252276,-584.71,0.00013972,2]
[334834069,1723606252286,-501.28187057,0.00013972,2]
[334834070,1723606252296,-1094.18,0.00013972,2]
[334834071,1723606252305,-500.0,0.00013972,2]
[334834072,1723606252315,-297.61129644,0.00013972,2]
[334834073,1723606252324,-923.76,0.00013972,2]
[334834074,1723606252334,-500.0,0.00013972,2]
[334834075,1723606252345,-500.0,0.00013972,2]
[334834076,1723606252355,-2601.81,0.00013972,2]
[334834077,1723606252364,-1963.59,0.00013972,2]
[334834078,1723606252374,-638.65,0.00013972,2]
[334834079,1723606252385,-1049.63,0.00013972,2]
[334834080,1723606252394,-500.0,0.00013972,2]
[334834081,1723606252404,-532.86,0.00013972,2]
[334834082,1723606252413,-663.4,0.00013972,2]
[334834083,1723606252422,-808.44,0.00013972,2]
[334834084,1723606252431,-1589.14,0.00013972,2]
[334834085,1723606252441,-500.0,0.00013972,2]
[334834086,1723606252450,-500.0,0.00013972,2]
[334834087,1723606252459,-500.0,0.00013972,2]
[334834088,1723606252469,-500.0,0.00013972,2]
[334834089,1723606252478,-500.0,0.00013972,2]
[334834090,1723606252488,-1726.13,0.00013972,2]
[334834091,1723606252498,-2138.89,0.00013972,2]
[334834092,1723606252507,-297.91813581,0.00013972,2]
[334834093,1723606252517,-500.0,0.00013972,2]
[334834094,1723606252527,-515.45350551,0.00013972,2]
[334834095,1723606252536,-500.0,0.00013972,2]
[334834096,1723606252546,-500.0,0.00013972,2]
[334834097,1723606252555,-1206.0,0.00013972,2]
[334834098,1723606252565,-500.0,0.00013972,2]
[334834099,1723606252575,-500.0,0.00013972,2]
[334834100,1723606252586,-734.71,0.00013972,2]
[334834101,1723606252596,-500.0,0.00013972,2]
[334834102,1723606252606,-1244.17,0.00013972,2]
[334834103,1723606252615,-720.69,0.00013972,2]
[334834104,1723606252625,-744.42,0.00013972,2]
[334834105,1723606252635,-500.0,0.00013972,2]
[334834106,1723606252644,-1424.96,0.00013972,2]
[334834107,1723606252653,-500.0,0.00013972,2]
[334834108,1723606252663,-500.0,0.00013972,2]
[334834109,1723606252673,-512.86482762,0.00013972,2]
[334834110,1723606252683,-500.0,0.00013972,2]
[334834111,1723606252692,-500.0,0.00013972,2]
[334834112,1723606252702,-500.0,0.00013972,2]
[334834113,1723606252711,-500.0,0.00013972,2]
[334834114,1723606252721,-500.0,0.00013972,2]
[334834115,1723606252730,-500.0,0.00013972,2]
[334834116,1723606252744,-500.0,0.00013972,2]
[334834117,1723606252753,-1700.15,0.00013972,2]
[334834118,1723606252763,-1009.26,0.00013972,2]
[334834119,1723606252772,-1729.02,0.00013972,2]
[334834120,1723606252783,-500.0,0.00013972,2]
[334834121,1723606252793,-500.0,0.00013972,2]
[334834122,1723606252802,-500.0,0.00013972,2]
[334834123,1723606252812,-500.0,0.00013972,2]
[334834124,1723606252823,-500.0,0.00013972,2]
[334834125,1723606252832,-806.14,0.00013972,2]
[334834126,1723606252843,-715.73,0.00013972,2]
[334834127,1723606252852,-1851.1,0.00013972,2]
[334834128,1723606252861,-1632.72,0.00013972,2]
[334834129,1723606252871,-500.0,0.00013972,2]
[334834130,1723606252881,-641.85,0.00013972,2]
[334834131,1723606252891,-500.0,0.00013972,2]
[334834132,1723606252900,-2952.62,0.00013972,2]
[334834133,1723606252910,-500.0,0.00013972,2]
[334834134,1723606252920,-500.0,0.00013972,2]
[334834135,1723606252929,-2012.27,0.00013972,2]
[334834136,1723606252938,-593.57,0.00013972,2]
[334834137,1723606252948,-538.72,0.00013972,2]
[334834138,1723606252957,-1377.11,0.00013972,2]
[334834139,1723606252967,-711.28,0.00013972,2]
[334834140,1723606252977,-1760.83,0.00013972,2]
[334834141,1723606252987,-500.0,0.00013972,2]
[334834142,1723606252996,-2220.15,0.00013972,2]
[334834143,1723606253004,-500.0,0.00013972,2]
[334834144,1723606253013,-500.0,0.00013972,2]
[334834145,1723606253023,-500.0,0.00013972,2]
[334834146,1723606253032,-1603.72,0.00013972,2]
[334834147,1723606253042,-500.0,0.00013972,2]
[334834148,1723606253052,-500.0,0.00013972,2]
[334834149,1723606253062,-500.0,0.00013972,2]
[334834150,1723606253072,-549.4724771,0.00013972,2]
[334834151,1723606253082,-500.0,0.00013972,2]
[334834152,1723606253093,-2425.01,0.00013972,2]
[334834153,1723606253103,-500.0,0.00013972,2]
[334834154,1723606253113,-500.0,0.00013972,2]
[334834155,1723606253123,-900.53,0.00013972,2]
[334834156,1723606253133,-826.53,0.00013972,2]
[334834157,1723606253143,-500.0,0.00013972,2]
[334834158,1723606253152,-500.0,0.00013972,2]
[334834159,1723606253162,-1526.93,0.00013972,2]
[334834160,1723606253172,-500.0,0.00013972,2]
[334834161,1723606253182,-500.0,0.00013972,2]
[334834162,1723606253191,-500.0,0.00013972,2]
[334834163,1723606253201,-704.57,0.00013972,2]
[334834164,1723606253210,-293.8989118,0.00013972,2]
[334834165,1723606253220,-1550.13,0.00013972,2]
[334834166,1723606253229,-767.88,0.00013972,2]
[334834167,1723606253240,-516.5,0.00013972,2]
[334834168,1723606253249,-500.0,0.00013972,2]
[334834169,1723606253260,-648.78,0.00013972,2]
[334834170,1723606253426,-932.89,0.00013972,2]
[334834171,1723606253436,-640.05,0.00013972,2]
[334834172,1723606253446,-1388.76,0.00013972,2]
[334834173,1723606253455,-500.0,0.00013972,2]
[334834174,1723606253466,-637.78,0.00013972,2]
[334834175,1723606253475,-2460.02,0.00013972,2]
[334834176,1723606253485,-500.0,0.00013972,2]
[334834177,1723606253494,-500.0,0.00013972,2]
[334834178,1723606253503,-500.0,0.00013972,2]
[334834179,1723606253513,-1435.53,0.00013972,2]
[334834180,1723606253522,-673.72,0.00013972,2]
[334834181,1723606253532,-597.05,0.00013972,2]
[334834182,1723606253542,-500.0,0.00013972,2]
[334834183,1723606253552,-1571.68,0.00013972,2]
[334834184,1723606253562,-1001.8,0.00013972,2]
[334834185,1723606253571,-500.0,0.00013972,2]
[334834186,1723606253581,-500.0,0.00013972,2]
[334834187,1723606253591,-500.0,0.00013972,2]
[334834188,1723606253601,-500.0,0.00013972,2]
[334834189,1723606253612,-1636.49,0.00013972,2]
[334834190,1723606253623,-500.0,0.00013972,2]
[334834191,1723606253633,-680.42,0.00013972,2]
[334834192,1723606253643,-891.1,0.00013972,2]
[334834193,1723606253652,-500.0,0.00013972,2]
[334834194,1723606253662,-500.0,0.00013972,2]
[334834195,1723606253672,-1446.08,0.00013972,2]
[334834196,1723606253682,-596.24,0.00013972,2]
[334834197,1723606253693,-1020.89,0.00013972,2]
[334834198,1723606253704,-2129.32,0.00013972,2]
[334834199,1723606253713,-500.0,0.00013972,2]
[334834200,1723606253723,-500.0,0.00013972,2]
[334834201,1723606253734,-500.0,0.00013972,2]
[334834202,1723606253748,-500.0,0.00013972,2]
[334834203,1723606253758,-500.0,0.00013972,2]
[334834204,1723606253768,-500.0,0.00013972,2]
[334834205,1723606253778,-2246.07,0.00013972,2]
[334834206,1723606253788,-301.91327896,0.00013972,2]
[334834207,1723606253798,-2352.39,0.00013972,2]
[334834208,1723606253808,-1415.94,0.00013972,2]
[334834209,1723606253817,-500.0,0.00013972,2]
[334834210,1723606253827,-500.0,0.00013972,2]
[334834211,1723606253838,-500.0,0.00013972,2]
[334834212,1723606253847,-500.0,0.00013972,2]
[334834213,1723606253857,-1289.28,0.00013972,2]
[334834214,1723606253867,-1181.14,0.00013972,2]
[334834215,1723606253877,-500.0,0.00013972,2]
[334834216,1723606253887,-458.69924118,0.00013972,2]
[334834217,1723606253897,-1218.75,0.00013972,2]
[334834218,1723606253907,-1007.49,0.00013972,2]
[334834219,1723606253916,-738.52,0.00013972,2]
[334834220,1723606253926,-500.0,0.00013972,2]
[334834221,1723606253936,-500.0,0.00013972,2]
[334834222,1723606253945,-1335.68,0.00013972,2]
[334834223,1723606253955,-500.0,0.00013972,2]
[334834224,1723606253965,-1418.41,0.00013972,2]
[334834225,1723606253975,-500.0,0.00013972,2]
[334834226,1723606253985,-880.3,0.00013972,2]
[334834227,1723606253994,-500.0,0.00013972,2]
[334834228,1723606254004,-500.0,0.00013972,2]
[334834229,1723606254014,-861.16,0.00013972,2]
[334834230,1723606254024,-1333.35,0.00013972,2]
[334834231,1723606254034,-500.0,0.00013972,2]
[334834232,1723606254043,-1083.16,0.00013972,2]
[334834233,1723606254053,-2563.84,0.00013972,2]
[334834234,1723606254063,-500.0,0.00013972,2]
[334834235,1723606254073,-507.42,0.00013972,2]
[334834236,1723606254083,-500.0,0.00013972,2]
[334834237,1723606254094,-500.0,0.00013972,2]
[334834238,1723606254104,-500.0,0.00013972,2]
[334834239,1723606254113,-500.0,0.00013972,2]
[334834240,1723606254123,-500.0,0.00013972,2]
[334834241,1723606254133,-573.3,0.00013972,2]
[334834242,1723606254142,-500.0,0.00013972,2]
[334834243,1723606254152,-580.91,0.00013972,2]
[334834244,1723606254162,-530.84,0.00013972,2]
[334834245,1723606254171,-265.61228281,0.00013972,2]
[334834246,1723606254181,-596.67,0.00013972,2]
[334834247,1723606254191,-1626.94,0.00013972,2]
[334834248,1723606254200,-500.0,0.00013972,2]
[334834249,1723606254210,-500.0,0.00013972,2]
[334834250,1723606254219,-1291.86,0.00013972,2]
[334834251,1723606254230,-500.0,0.00013972,2]
[334834252,1723606254240,-718.25,0.00013972,2]
[334834253,1723606254250,-500.0,0.00013972,2]
[334834254,1723606254260,-1403.87,0.00013972,2]
[334834255,1723606254269,-1253.31,0.00013972,2]
[334834256,1723606254279,-500.0,0.00013972,2]
[334834257,1723606254288,-500.0,0.00013972,2]
[334834258,1723606254298,-500.0,0.00013972,2]
[334834259,1723606254307,-500.0,0.00013972,2]
[334834260,1723606254317,-1266.98,0.00013972,2]
[334834261,1723606254326,-990.05,0.00013972,2]
[334834262,1723606254336,-785.78,0.00013972,2]